bitfinex/quotes_BTCUSD_20240727
["timestamp","ask_amount","ask_price","bid_price","bid_amount"]
[1722086792868,0.07733528,68999.0,68998.0,0.81881366]
[1722086793797,0.07733527,68999.0,68998.0,0.81881366]
[1722086795616,0.1000876,68999.0,68998.0,0.81881366]
[1722086797027,0.10008779,68999.0,68998.0,0.81881366]
[1722086798136,0.18228779,68999.0,68998.0,0.01902687]
[1722086798541,0.18228779,68999.0,68998.0,0.014]
[1722086799163,0.22167743,68999.0,68998.0,0.014]
[1722086800303,0.22192515,68999.0,68998.0,0.014]
[1722086800566,0.19917282,68999.0,68998.0,0.014]
[1722086801776,0.15953637,68999.0,68998.0,0.014]
[1722086802645,0.19876975,68999.0,68998.0,0.014]
[1722086802786,0.19960975,68999.0,68998.0,0.014]
[1722086803834,0.22236363,68999.0,68998.0,0.014]
[1722086804847,0.22236363,68999.0,68998.0,0.01807122]
[1722086806104,0.32236363,68999.0,68998.0,0.01807122]
[1722086806472,0.32236363,68999.0,68998.0,0.014]
[1722086806820,0.27409388,68999.0,68998.0,0.01807122]
[1722086807000,0.32167616,68999.0,68998.0,0.01807122]
[1722086807197,0.46660516,68999.0,68998.0,0.01807122]
[1722086807447,0.75646416,68999.0,68998.0,0.014]
[1722086807663,1.15654316,68999.0,68998.0,0.014]
[1722086807864,2.31599228,68999.0,68998.0,0.014]
[1722086807977,2.5386095,68999.0,68998.0,0.014]
[1722086808198,2.5386095,68999.0,68998.0,0.008]
[1722086808401,2.5386095,68999.0,68992.0,1.2526]
[1722086808402,0.2,68993.0,68992.0,1.2526]
[1722086808606,1.21969228,68993.0,68992.0,1.2526]
[1722086809069,0.92980828,68993.0,68992.0,1.2526]
[1722086809296,0.49498228,68993.0,68992.0,1.2526]
[1722086809500,0.29498228,68993.0,68992.0,1.2526]
[1722086809832,0.29498228,68993.0,68992.0,1.25641864]
[1722086810171,0.29590876,68993.0,68992.0,1.25641864]
[1722086810474,0.29590876,68993.0,68992.0,0.00381864]
[1722086810826,0.29790876,68993.0,68982.0,1.2526]
[1722086811116,0.2494,68993.0,68992.0,0.07894843]
[1722086811287,0.29668691,68993.0,68992.0,0.07612979]
[1722086811486,0.29668691,68993.0,68992.0,0.07712979]
[1722086811643,0.29668691,68993.0,68992.0,0.07612979]
[1722086811989,0.73051291,68993.0,68992.0,0.07512979]
[1722086812130,1.22039691,68993.0,68992.0,0.07512979]
[1722086812999,0.93051291,68993.0,68992.0,0.07512979]
[1722086813243,0.882226,68993.0,68992.0,0.07512979]
[1722086813419,0.93082687,68993.0,68992.0,0.07512979]
[1722086813596,1.22071106,68993.0,68992.0,0.07512979]
[1722086813796,0.144958,68986.0,68981.0,0.07512979]
[1722086813998,0.144963,68983.0,68981.0,0.07512979]
[1722086814181,0.07453829,68982.0,68981.0,0.07512979]
[1722086814730,0.88126329,68982.0,68981.0,0.07512979]
[1722086814932,0.7311,68982.0,68981.0,0.07812979]
[1722086815233,0.31896421,68982.0,68981.0,0.07512979]
[1722086815440,0.46392921,68982.0,68981.0,0.07900967]
[1722086815699,0.44117,68982.0,68981.0,0.09300967]
[1722086815896,0.4427242,68982.0,68981.0,0.09300967]
[1722086816039,1.0225842,68982.0,68981.0,0.09300967]
[1722086816238,0.7311,68982.0,68981.0,0.09300967]
[1722086816684,0.682295,68982.0,68981.0,0.08912979]
[1722086817013,0.73193596,68982.0,68981.0,0.08112979]
[1722086817336,0.73193596,68982.0,68981.0,0.07512979]
[1722086818645,0.75469548,68982.0,68981.0,0.07512979]
[1722086818847,1.04462548,68982.0,68981.0,0.07512979]
[1722086820173,1.03483138,68982.0,68981.0,0.07512979]
[1722086820346,1.04387123,68982.0,68981.0,0.07512979]
[1722086820577,1.02111171,68982.0,68981.0,0.07512979]
[1722086821015,1.31104171,68982.0,68981.0,0.07512979]
[1722086821217,1.43246353,68982.0,68981.0,0.07512979]
[1722086821957,1.54504171,68982.0,68981.0,0.07512979]
[1722086822371,1.55204171,68982.0,68981.0,0.07612979]
[1722086823451,0.972225,68982.0,68981.0,0.07512979]
[1722086823640,1.03359103,68982.0,68981.0,0.07612979]
[1722086823848,1.00698634,68982.0,68981.0,0.07612979]
[1722086824051,0.45372289,68982.0,68981.0,0.07612979]
[1722086824201,0.30875789,68982.0,68981.0,0.07612979]
[1722086824605,0.44172289,68982.0,68981.0,0.07512979]
[1722086824924,0.26244023,68982.0,68981.0,0.07612979]
[1722086825068,0.46111571,68982.0,68981.0,0.07712979]
[1722086825269,0.46166832,68982.0,68981.0,0.07712979]
[1722086825476,0.74404412,68982.0,68981.0,0.07612979]
[1722086825712,0.7455088,68982.0,68981.0,0.07612979]
[1722086825927,0.74404412,68982.0,68981.0,0.07612979]
[1722086826129,0.70933523,68982.0,68981.0,0.07712979]
[1722086826307,0.75008343,68982.0,68981.0,0.07712979]
[1722086826482,0.74408343,68982.0,68981.0,0.07612979]
[1722086826683,0.74408343,68982.0,68965.0,0.000924]
[1722086826684,0.289955,68976.0,68965.0,0.000924]
[1722086826901,2.94618811,68976.0,68965.0,0.000924]
[1722086827105,3.25914311,68976.0,68965.0,0.000924]
[1722086827305,3.28190774,68976.0,68965.0,0.000924]
[1722086827748,2.99195274,68976.0,68965.0,0.000924]
[1722086827960,1.59722274,68976.0,68969.0,0.07512979]
[1722086828151,0.74949274,68976.0,68969.0,0.07512979]
[1722086828333,1.03944774,68976.0,68969.0,0.07512979]
[1722086828552,1.03944774,68976.0,68975.0,0.001924]
[1722086828553,1.05044774,68976.0,68975.0,0.001924]
[1722086828946,0.76049274,68976.0,68975.0,0.001924]
[1722086829214,0.24486074,68976.0,68975.0,0.001924]
[1722086829575,0.25086074,68976.0,68975.0,0.002924]
[1722086829998,0.20106463,68976.0,68975.0,0.002924]
[1722086830133,0.25244031,68976.0,68975.0,0.002924]
[1722086830543,0.21010516,68976.0,68975.0,0.002924]
[1722086833333,0.1783,68976.0,68975.0,0.002924]
[1722086833534,0.08733994,68976.0,68975.0,0.002924]
[1722086833772,0.02603994,68976.0,68975.0,0.002924]
[1722086834566,0.12603994,68976.0,68975.0,0.002924]
[1722086834766,0.27101694,68976.0,68975.0,0.002924]
[1722086834940,0.12603994,68976.0,68975.0,0.002924]
[1722086835122,0.27101694,68976.0,68975.0,0.002924]
[1722086835327,0.31376418,68976.0,68975.0,0.002924]
[1722086835548,0.27101694,68976.0,68975.0,0.002924]
[1722086835950,0.31344022,68976.0,68975.0,0.002924]
[1722086836610,0.19114236,68976.0,68975.0,0.002924]
[1722086837159,0.33611936,68976.0,68975.0,0.002924]
[1722086837755,1.34648436,68976.0,68975.0,0.002924]
[1722086838867,1.05652936,68976.0,68975.0,0.002924]
[1722086839916,1.00515028,68976.0,68975.0,0.002924]
[1722086840085,1.05597735,68976.0,68975.0,0.002924]
[1722086843042,0.76602235,68976.0,68975.0,0.002924]
[1722086843283,0.25371587,68976.0,68975.0,0.002924]
[1722086843652,0.25371587,68976.0,68975.0,0.00638241]
[1722086843837,0.25371587,68976.0,68975.0,0.002924]
[1722086844042,0.19081587,68976.0,68975.0,0.002924]
[1722086845635,0.09081587,68976.0,68975.0,0.002924]
[1722086845919,0.06805259,68976.0,68975.0,0.002924]
[1722086846299,0.05705259,68976.0,68975.0,0.001924]
[1722086846500,0.05105259,68976.0,68975.0,0.000924]
[1722086846702,0.05216454,68976.0,68975.0,0.000924]
[1722086846939,0.07120451,68976.0,68975.0,0.000924]
[1722086847127,0.06120451,68976.0,68975.0,0.000924]
[1722086847487,0.06120451,68976.0,68975.0,0.002924]
[1722086848294,0.16120451,68976.0,68975.0,0.002924]
[1722086848724,0.18396763,68976.0,68975.0,0.002924]
[1722086848878,0.16120451,68976.0,68975.0,0.002924]
[1722086849281,0.05120451,68976.0,68975.0,0.000924]
[1722086849473,0.06920451,68976.0,68975.0,0.001924]
[1722086849881,0.018,68976.0,68975.0,0.001924]
[1722086850080,0.009,68976.0,68975.0,0.001924]
[1722086850303,0.05102417,68976.0,68975.0,0.000924]
[1722086850708,0.04398422,68976.0,68975.0,0.000924]
[1722086851021,0.05502417,68976.0,68975.0,0.000924]
[1722086852266,0.07728715,68976.0,68975.0,0.000924]
[1722086853361,0.02676308,68976.0,68975.0,0.000924]
[1722086853561,0.04551519,68976.0,68975.0,0.000924]
[1722086853745,0.05455552,68976.0,68975.0,0.000924]
[1722086854771,0.19953252,68976.0,68975.0,0.000924]
[1722086854957,0.76274429,68976.0,68975.0,0.000924]
[1722086855250,0.73388752,68976.0,68975.0,0.000924]
[1722086856975,0.75665068,68976.0,68975.0,0.000924]
[1722086857215,0.73388752,68976.0,68975.0,0.000924]
[1722086857419,0.44393252,68976.0,68975.0,0.000924]
[1722086859225,0.74347443,68976.0,68975.0,0.000924]
[1722086859397,0.45351943,68976.0,68975.0,0.000924]
[1722086859603,0.22744243,68976.0,68975.0,0.000924]
[1722086859777,0.21785552,68976.0,68975.0,0.000924]
[1722086860794,0.24061864,68976.0,68975.0,0.000924]
[1722086861064,0.17731864,68976.0,68975.0,0.000924]
[1722086861197,0.07731864,68976.0,68975.0,0.000924]
[1722086861414,0.17731864,68976.0,68975.0,0.00439793]
[1722086861612,0.17731864,68976.0,68975.0,0.000924]
[1722086861969,0.15455552,68976.0,68975.0,0.000924]
[1722086862178,0.15455552,68976.0,68975.0,0.00439793]
[1722086862300,0.15455552,68976.0,68975.0,0.000924]
[1722086862498,0.05455552,68976.0,68975.0,0.00439793]
[1722086863574,0.05325098,68976.0,68975.0,0.14929793]
[1722086864350,0.01304036,68976.0,68975.0,0.14929793]
[1722086864577,0.01304036,68976.0,68975.0,0.29427793]
[1722086865096,0.01104036,68976.0,68975.0,0.29427793]
[1722086865501,0.00904036,68976.0,68975.0,0.15029793]
[1722086865938,0.01517294,68981.0,68977.0,0.144975]
[1722086866155,0.01517294,68981.0,68980.0,0.07512979]
[1722086866356,0.00903846,68981.0,68980.0,0.07512979]
[1722086866481,0.00903846,68981.0,68980.0,0.07860541]
[1722086866689,0.03179842,68981.0,68980.0,0.07860541]
[1722086866867,0.00903845,68981.0,68980.0,0.07860541]
[1722086867267,0.01303845,68981.0,68980.0,0.07860541]
[1722086867974,0.01303845,68981.0,68980.0,0.65841341]
[1722086868206,0.01303845,68981.0,68980.0,0.94835241]
[1722086868405,0.004,68981.0,68980.0,0.94835241]
[1722086868668,0.009,68981.0,68980.0,0.94835241]
[1722086868877,0.00984,68981.0,68980.0,0.94835241]
[1722086869079,0.00484,68981.0,68980.0,0.94835241]
[1722086869288,0.00484,68981.0,68980.0,0.95435241]
[1722086869480,0.00584,68981.0,68980.0,0.95435241]
[1722086869840,0.024598,68981.0,68980.0,0.95435241]
[1722086870045,0.028598,68981.0,68980.0,0.95435241]
[1722086870373,0.028598,68981.0,68980.0,0.66441341]
[1722086871272,0.028598,68981.0,68980.0,0.95435241]
[1722086871713,0.024598,68981.0,68980.0,0.95435241]
[1722086872121,0.025598,68981.0,68980.0,0.95435241]
[1722086872507,0.025598,68981.0,68980.0,0.66441341]
[1722086873657,0.00284,68981.0,68980.0,0.66441341]
[1722086874768,0.00284,68981.0,68980.0,0.95435241]
[1722086875506,0.00184,68981.0,68980.0,0.95435241]
[1722086875707,0.00084,68981.0,68980.0,0.94835241]
[1722086875912,0.00084,68981.0,68980.0,0.95435241]
[1722086875913,0.00184,68981.0,68980.0,0.95435241]
[1722086876155,0.00284,68981.0,68980.0,0.95435241]
[1722086876559,0.02559686,68981.0,68980.0,0.95435241]
[1722086877776,0.00284,68981.0,68980.0,0.95435241]
[1722086878581,0.00284,68981.0,68980.0,1.24429141]
[1722086878828,0.01517294,68997.0,68996.0,0.724677]
[1722086879080,0.01517294,68997.0,68996.0,1.23457779]
[1722086879397,0.00484,68999.0,68998.0,0.805257]
[1722086879809,0.00484,68999.0,68998.0,0.80845691]
[1722086880138,0.00484,68999.0,68998.0,0.51859391]
[1722086880771,0.00584,68999.0,68998.0,0.53259391]
[1722086880929,0.00584,68999.0,68998.0,0.24273091]
[1722086881131,0.02859169,68999.0,68998.0,0.09779991]
[1722086881332,0.02859169,68999.0,68998.0,0.01719991]
[1722086881537,0.09169169,68999.0,68998.0,0.01719991]
[1722086881936,0.10072782,68999.0,68998.0,0.01719991]
[1722086882197,0.22190513,68999.0,68998.0,0.00319991]
[1722086882499,0.22190513,68999.0,68996.0,0.003]
[1722086882500,0.11387613,68999.0,68989.0,0.07512979]
[1722086882701,0.0646542,68996.0,68989.0,0.07512979]
[1722086882902,0.07213613,68995.0,68989.0,0.07512979]
[1722086883078,0.01059033,68994.0,68989.0,0.07512979]
[1722086883260,0.01059033,68994.0,68977.0,0.00942782]
[1722086883261,0.0642,68991.0,68990.0,0.07512979]
[1722086883461,0.0732375,68991.0,68990.0,0.07512979]
[1722086884290,0.2181835,68991.0,68990.0,0.07512979]
[1722086884493,0.6080755,68991.0,68990.0,0.07512979]
[1722086884695,0.3181835,68991.0,68990.0,0.07512979]
[1722086884899,0.3197377,68991.0,68990.0,0.07512979]
[1722086885220,0.34249487,68991.0,68990.0,0.07512979]
[1722086885629,0.19754887,68991.0,68990.0,0.07512979]
[1722086885823,0.19754887,68991.0,68990.0,0.07712979]
[1722086886024,0.09599467,68991.0,68990.0,0.07912979]
[1722086886390,0.08695717,68991.0,68990.0,0.07912979]
[1722086886608,0.09599532,68991.0,68990.0,0.07912979]
[1722086886836,0.00903815,68991.0,68990.0,0.07912979]
[1722086887041,0.01059235,68994.0,68990.0,0.07912979]
[1722086887445,0.0015542,68992.0,68990.0,0.07912979]
[1722086887632,0.00903815,68991.0,68990.0,0.07912979]
[1722086888042,0.0015542,68992.0,68990.0,0.07912979]
[1722086888197,0.0015542,68992.0,68990.0,0.07712979]
[1722086888198,0.00903815,68991.0,68990.0,0.07712979]
[1722086888600,0.00903815,68991.0,68990.0,0.07833047]
[1722086888821,0.01059235,68994.0,68990.0,0.07833047]
[1722086889022,0.0015542,68992.0,68990.0,0.07833047]
[1722086889291,0.00903815,68991.0,68990.0,0.07833047]
[1722086889468,0.00903815,68991.0,68990.0,0.08433047]
[1722086889813,0.00903767,68993.0,68990.0,0.08133047]
[1722086890008,0.0015542,68994.0,68990.0,0.07833047]
[1722086890009,0.02275635,68991.0,68990.0,0.07833047]
[1722086890267,0.03179402,68991.0,68990.0,0.07833047]
[1722086890420,0.00903767,68991.0,68990.0,0.07833047]
[1722086890622,0.00903767,68995.0,68990.0,0.07833047]
[1722086890830,0.00903767,68995.0,68990.0,0.22327847]
[1722086891049,0.00903767,68994.0,68990.0,0.22327847]
[1722086891306,0.00903767,68993.0,68992.0,0.144944]
[1722086891475,0.00090246,68996.0,68992.0,0.144944]
[1722086891476,0.00484,68999.0,68994.0,0.144939]
[1722086891693,0.00484,68999.0,68998.0,0.07512979]
[1722086891900,0.01387586,68999.0,68998.0,0.07512979]
[1722086892095,0.01387586,68999.0,68998.0,0.30247059]
[1722086892298,0.01387586,68999.0,68998.0,0.15753959]
[1722086892978,0.01387586,68999.0,68998.0,0.30347059]
[1722086892979,0.01787586,68999.0,68998.0,0.30347059]
[1722086893140,0.02387586,68999.0,68998.0,0.30347059]
[1722086893343,0.02387586,68999.0,68998.0,0.15853959]
[1722086893547,0.04662854,68999.0,68998.0,0.15853959]
[1722086894185,0.02387586,68999.0,68998.0,0.15853959]
[1722086894589,0.02387586,68999.0,68998.0,0.30347059]
[1722086894791,0.02387586,68999.0,68998.0,0.15753959]
[1722086894792,0.01787586,68999.0,68998.0,0.15753959]
[1722086895001,0.01787586,68999.0,68998.0,0.30347059]
[1722086895196,0.01787586,68999.0,68998.0,0.88319659]
[1722086895400,0.01787586,68999.0,68998.0,0.94849659]
[1722086895611,0.01787586,68999.0,68998.0,0.36877059]
[1722086895925,0.01787586,68999.0,68998.0,0.15953959]
[1722086896129,0.01787586,68999.0,68998.0,0.30347059]
[1722086896286,0.01387557,68999.0,68998.0,0.15753959]
[1722086896487,0.01387557,68999.0,68998.0,0.89119659]
[1722086896488,0.01487557,68999.0,68998.0,0.89119659]
[1722086896803,0.01487557,68999.0,68998.0,0.90119659]
[1722086897277,0.02859206,68999.0,68998.0,1.25635959]
[1722086897484,0.02859206,68999.0,68998.0,1.25835959]
[1722086897635,0.00584,68999.0,68998.0,1.54822259]
[1722086897842,0.00584,68999.0,68998.0,1.60030259]
[1722086898033,0.00484,68999.0,68998.0,1.58130259]
[1722086898237,0.00484,68999.0,68998.0,1.73430259]
[1722086898437,0.00584,68999.0,68998.0,1.76230259]
[1722086898844,0.00584,68999.0,68998.0,2.05216559]
[1722086899060,0.00484,68999.0,68998.0,2.03305359]
[1722086899265,0.00484,68999.0,68998.0,2.04705359]
[1722086899490,0.00584,68999.0,68998.0,2.04705359]
[1722086899798,0.10484,68999.0,68998.0,2.03305359]
[1722086900454,0.00817,69002.0,69001.0,0.002]
[1722086900455,0.00105836,69002.0,69001.0,0.002]
[1722086900664,0.00105836,69002.0,69001.0,0.473505]
[1722086900864,0.0238064,69002.0,69001.0,1.36921762]
[1722086901244,0.00105836,69002.0,69001.0,1.65906762]
[1722086901889,0.00817,69012.0,69011.0,0.11028]
[1722086902093,0.00817,69012.0,69011.0,0.992892]
[1722086902299,0.00817,69012.0,69011.0,1.86547739]
[1722086902500,0.00817,69012.0,69011.0,1.94531729]
[1722086903481,0.00817,69012.0,69011.0,1.90522653]
[1722086903711,0.00817,69012.0,69011.0,1.95931729]
[1722086904936,0.00817,69012.0,69011.0,1.97331729]
[1722086905290,0.00817,69012.0,69011.0,1.68150929]
[1722086905484,0.00817,69012.0,69011.0,0.70220253]
[1722086905689,0.00817,69012.0,69011.0,0.11036139]
[1722086906345,0.00817,69012.0,69011.0,0.01716139]
[1722086906538,0.00817,69012.0,69011.0,0.00316139]
[1722086906722,0.00817,69012.0,69011.0,0.028]
[1722086907118,0.00817,69012.0,69011.0,0.014]
[1722086907388,0.00817,69012.0,69011.0,0.028]
[1722086907621,0.0645,69021.0,69011.0,0.028]
[1722086907812,0.0645,69021.0,69015.0,0.07512979]
[1722086908218,0.02274815,69019.0,69015.0,0.07512979]
[1722086908358,0.02274815,69019.0,69016.0,0.0028533]
[1722086909156,0.28978,69018.0,69011.0,0.014]
[1722086909363,0.02274815,69019.0,69011.0,0.014]
[1722086909364,0.207302,69012.0,69011.0,0.014]
[1722086909562,0.573906,69012.0,69011.0,0.017]
[1722086909816,0.86371,69012.0,69011.0,0.003]
[1722086910053,0.1392,69012.0,69007.0,0.07512979]
[1722086910600,0.144907,69010.0,69007.0,0.07512979]
[1722086911095,0.289808,69011.0,69007.0,0.07512979]
[1722086911776,0.144909,69009.0,69007.0,0.07512979]
[1722086911941,0.289813,69010.0,69007.0,0.07512979]
[1722086911942,0.14491,69008.0,69007.0,0.07512979]
[1722086912148,0.144909,69009.0,69007.0,0.07512979]
[1722086912385,0.289813,69010.0,69007.0,0.07512979]
[1722086912581,0.16765963,69008.0,69007.0,0.07512979]
[1722086913291,0.16765963,69008.0,69007.0,0.07612979]
[1722086913696,0.16765963,69008.0,69007.0,0.07512979]
[1722086913939,0.724552,69008.0,69007.0,0.07812979]
[1722086914173,0.786952,69008.0,69007.0,0.07512979]
[1722086914386,0.144929,68999.0,68990.0,0.52590851]
[1722086914557,0.497188,68999.0,68990.0,0.52590851]
[1722086914767,0.497188,68999.0,68990.0,0.07512979]
[1722086915146,0.207329,68999.0,68990.0,0.07512979]
[1722086915347,0.89608415,68999.0,68990.0,0.07512979]
[1722086915546,1.253706,68999.0,68990.0,0.07512979]
[1722086915839,0.97288472,68999.0,68990.0,0.07512979]
[1722086916928,0.97288472,68999.0,68998.0,0.08001779]
[1722086917504,1.26274372,68999.0,68998.0,0.08001779]
[1722086917759,0.97488472,68999.0,68998.0,0.08001779]
[1722086918201,0.97488472,68999.0,68998.0,0.07001779]
[1722086918720,1.00063983,68999.0,68998.0,0.07001779]
[1722086918863,1.258706,68999.0,68998.0,0.07001779]
[1722086919064,1.2677437,68999.0,68998.0,0.07001779]
[1722086919294,0.6880257,68999.0,68998.0,0.07001779]
[1722086919498,0.9778847,68999.0,68998.0,0.07001779]
[1722086921565,1.00064061,68999.0,68998.0,0.07001779]
[1722086922132,1.2677437,68999.0,68998.0,0.07001779]
[1722086922573,1.267744,68999.0,68998.0,0.07001779]
[1722086923718,0.977885,68999.0,68998.0,0.07001779]
[1722086924075,0.688026,68999.0,68998.0,0.07001779]
[1722086924221,0.398167,68999.0,68998.0,0.07001779]
[1722086924437,0.688026,68999.0,68998.0,0.07001779]
[1722086924643,0.398167,68999.0,68998.0,0.07001779]
[1722086924841,0.688026,68999.0,68998.0,0.07001779]
[1722086925200,0.42092265,68999.0,68998.0,0.07001779]
[1722086925406,0.71078165,68999.0,68998.0,0.07001779]
[1722086925612,0.70174365,68999.0,68998.0,0.07001779]
[1722086925751,0.42092252,68999.0,68998.0,0.07001779]
[1722086926966,0.71078152,68999.0,68998.0,0.07001779]
[1722086928257,1.00064052,68999.0,68998.0,0.07001779]
[1722086928907,0.99160265,68999.0,68998.0,0.07001779]
[1722086929071,1.00064052,68999.0,68998.0,0.07001779]
[1722086929476,0.97788487,68999.0,68998.0,0.07001779]
[1722086931662,1.26774387,68999.0,68998.0,0.07001779]
[1722086932316,1.26774397,68999.0,68998.0,0.07001779]
[1722086932482,1.26774397,68999.0,68998.0,0.07094179]
[1722086932915,1.29049996,68999.0,68998.0,0.07094179]
[1722086933189,1.32444731,68999.0,68998.0,0.07094179]
[1722086933963,1.30169132,68999.0,68998.0,0.07094179]
[1722086935724,1.30169428,68999.0,68998.0,0.07094179]
[1722086936548,1.01183528,68999.0,68998.0,0.07094179]
[1722086936774,1.03459121,68999.0,68998.0,0.07094179]
[1722086937437,1.01183528,68999.0,68998.0,0.07094179]
[1722086940805,1.03459079,68999.0,68998.0,0.07094179]
[1722086942532,1.03576099,68999.0,68998.0,0.07094179]
[1722086943032,1.32561999,68999.0,68998.0,0.07094179]
[1722086943439,1.03576099,68999.0,68998.0,0.07094179]
[1722086943850,1.32561999,68999.0,68998.0,0.07094179]
[1722086944090,1.47250699,68999.0,68998.0,0.07094179]
[1722086944678,1.46950699,68999.0,68998.0,0.07094179]
[1722086945028,1.47750699,68999.0,68998.0,0.07194179]
[1722086945632,1.46958863,68999.0,68998.0,0.07194179]
[1722086945834,1.04188108,68999.0,68998.0,0.07194179]
[1722086946419,0.38536308,68999.0,68998.0,0.07194179]
[1722086946530,0.67322208,68999.0,68998.0,0.07194179]
[1722086946905,0.67322208,68999.0,68998.0,0.07294179]
[1722086946906,0.32496308,68999.0,68998.0,0.07294179]
[1722086947138,0.61482208,68999.0,68998.0,0.07294179]
[1722086947894,0.18003408,68999.0,68998.0,0.07294179]
[1722086948096,0.32496308,68999.0,68998.0,0.07294179]
[1722086949129,0.18003408,68999.0,68998.0,0.07294179]
[1722086949329,0.08003408,68999.0,68998.0,0.65418999]
[1722086949503,0.08003408,68999.0,68998.0,0.21939599]
[1722086949504,0.04379396,68999.0,68998.0,0.21939599]
[1722086949704,0.02103845,68999.0,68998.0,0.21939599]
[1722086950226,0.01303845,68999.0,68998.0,0.21839599]
[1722086950427,0.00903845,68999.0,68998.0,0.21584179]
[1722086950626,0.00903845,68999.0,68998.0,0.22384179]
[1722086950792,0.01003845,68999.0,68998.0,0.23084179]
[1722086951002,0.01003845,68999.0,68998.0,0.22284179]
[1722086951227,0.00903845,68999.0,68998.0,0.22984179]
[1722086951683,0.001,68999.0,68998.0,0.22584179]
[1722086951891,0.001,68999.0,68998.0,0.23884179]
[1722086952585,0.01003571,68999.0,68998.0,0.23884179]
[1722086952788,0.03278747,68999.0,68998.0,0.23884179]
[1722086953199,0.03178747,68999.0,68998.0,0.22884179]
[1722086953380,0.03278747,68999.0,68998.0,0.24184179]
[1722086953579,0.03278747,68999.0,68998.0,0.25584179]
[1722086953800,0.03278747,68999.0,68998.0,0.22884179]
[1722086954022,0.00903571,68999.0,68998.0,0.21584179]
[1722086954270,0.03211514,69008.0,68998.0,0.22884179]
[1722086954271,0.00903571,69007.0,68998.0,0.22884179]
[1722086954483,0.435788,68999.0,68998.0,0.025924]
[1722086954611,0.44482371,68999.0,68998.0,0.025924]
[1722086954815,0.57714888,68999.0,68998.0,0.025924]
[1722086955017,0.57714888,68999.0,68998.0,0.000924]
[1722086955018,0.57614888,68999.0,68998.0,0.000924]
[1722086955463,0.57554352,68999.0,68998.0,0.014924]
[1722086956446,0.57654352,68999.0,68998.0,0.028924]
[1722086956711,0.83506717,68999.0,68998.0,0.014924]
[1722086956920,0.83506717,68999.0,68998.0,0.027924]
[1722086956921,1.49916152,68999.0,68998.0,0.027924]
[1722086957118,0.40615552,68999.0,68998.0,0.013924]
[1722086957317,0.30844101,68999.0,68998.0,0.025924]
[1722086957518,0.14175552,68999.0,68998.0,0.025924]
[1722086957673,0.14175552,68999.0,68998.0,0.012924]
[1722086957895,0.28568452,68999.0,68998.0,0.000924]
[1722086958073,0.28568452,68999.0,68998.0,0.001924]
[1722086958280,0.29468452,68999.0,68998.0,0.001924]
[1722086958553,0.28503872,68999.0,68998.0,0.001924]
[1722086958683,0.30007616,68999.0,68998.0,0.002924]
[1722086959069,0.15514716,68999.0,68998.0,0.002924]
[1722086959700,0.15514716,68999.0,68998.0,0.001924]
[1722086959701,0.14614716,68999.0,68998.0,0.001924]
[1722086959909,0.14214716,68999.0,68998.0,0.000924]
[1722086960112,0.14414716,68999.0,68998.0,0.000924]
[1722086960559,0.04414716,68999.0,68998.0,0.000924]
[1722086960774,0.06690204,68999.0,68998.0,0.000924]
[1722086961969,0.03579215,68999.0,68998.0,0.000924]
[1722086962475,0.05854264,68999.0,68998.0,0.000924]
[1722086963105,0.05654264,68999.0,68998.0,0.000924]
[1722086963511,0.05654264,68999.0,68998.0,0.145624]
[1722086963512,0.05454264,68999.0,68998.0,0.145624]
[1722086963715,0.03178776,68999.0,68998.0,0.145624]
[1722086963912,0.03178776,68999.0,68998.0,0.150624]
[1722086965365,0.03178641,68999.0,68998.0,0.150624]
[1722086965584,0.03178641,68999.0,68998.0,0.295555]
[1722086965808,0.03178641,68999.0,68998.0,0.875281]
[1722086966037,0.00903592,68999.0,68998.0,0.875281]
[1722086966243,0.02274745,69012.0,68999.0,0.0754]
[1722086966386,0.02274745,69012.0,69011.0,0.07512979]
[1722086966582,0.03178168,69012.0,69011.0,0.15052979]
[1722086967030,0.03178168,69012.0,69011.0,0.21582979]
[1722086968065,0.03278168,69012.0,69011.0,0.22682979]
[1722086968267,0.03278168,69012.0,69011.0,0.37173379]
[1722086968268,0.001,69012.0,69011.0,0.37173379]
[1722086968464,0.001,69012.0,69011.0,0.22682979]
[1722086968831,0.001,69012.0,69011.0,0.22838399]
[1722086968948,0.001,69012.0,69011.0,0.0125542]
[1722086969147,0.01003431,69012.0,69011.0,0.011]
[1722086969684,0.01003431,69012.0,69011.0,0.02]
[1722086970185,0.44474031,69012.0,69011.0,0.02]
[1722086970386,0.54474031,69012.0,69011.0,0.02]
[1722086970588,0.86256338,69012.0,69011.0,0.02]
[1722086970999,0.28295538,69012.0,69011.0,0.011]
[1722086971164,0.57275938,69012.0,69011.0,0.011]
[1722086971375,0.59450984,69012.0,69011.0,0.002]
[1722086971568,0.59450984,69012.0,69011.0,0.005]
[1722086971569,0.59474361,69012.0,69011.0,0.005]
[1722086971786,0.88454761,69012.0,69011.0,0.005]
[1722086973798,0.59474361,69012.0,69011.0,0.005]
[1722086975499,1.02434761,69012.0,69011.0,0.005]
[1722086975747,1.31415161,69012.0,69011.0,0.005]
[1722086976146,1.02434761,69012.0,69011.0,0.005]
[1722086976530,1.02434761,69012.0,69005.0,0.0015542]
[1722086976531,0.724572,69006.0,69005.0,0.0015542]
[1722086976703,0.86185915,69006.0,69005.0,0.0015542]
[1722086976903,0.724585,69005.0,68998.0,0.000924]
[1722086977103,0.86187215,69005.0,68998.0,0.00208164]
[1722086977376,0.86187215,69005.0,68998.0,0.000924]
[1722086977792,0.88462404,69005.0,68998.0,0.000924]
[1722086977951,0.59479004,69005.0,68998.0,0.000924]
[1722086978280,0.16051861,69005.0,68998.0,0.000924]
[1722086978484,0.06051861,69005.0,68998.0,0.0024782]
[1722086978918,0.16051861,69005.0,68998.0,0.000924]
[1722086979121,0.16051861,69005.0,68998.0,0.0024782]
[1722086979835,0.16045123,69005.0,68998.0,0.0024782]
[1722086980051,0.03178854,69005.0,68998.0,0.0024782]
[1722086980454,0.00903665,69005.0,68998.0,0.0024782]
[1722086980651,0.00903665,69005.0,68998.0,0.000924]
[1722086980994,0.00903665,69005.0,68998.0,0.0024782]
[1722086981407,0.00903665,69005.0,68998.0,0.000924]
[1722086981662,0.00903665,69006.0,68998.0,0.0024782]
[1722086981852,0.00903665,69005.0,68998.0,0.000924]
[1722086982104,0.00903665,69006.0,68998.0,0.000924]
[1722086982303,0.02854882,69005.0,68998.0,0.000924]
[1722086982422,0.00903665,69005.0,68998.0,0.000924]
[1722086982827,0.03769673,69006.0,68998.0,0.0024782]
[1722086983031,0.00903665,69005.0,68998.0,0.000924]
[1722086983233,0.03178779,69006.0,69004.0,0.15372979]
[1722086983427,0.00903665,69005.0,69004.0,0.15372979]